[Event "*** Titled Tuesday Blitz"]
[Site "Chess.com"]
[Date "2020.05.19"]
[Round "8"]
[White "Gareth-Bale11"]
[Black "Pittiplatsh"]
[Result "1-0"]
[WhiteElo "2704"]
[BlackElo "2551"]
[TimeControl "180+1"]
[EndTime "13:36:23 PDT"]
[Termination "Gareth-Bale11 won on time"]

1. e4 {[%clk 0:03:00.9]} 1... c5 {[%clk 0:02:59.7]} 2. Nf3 {[%clk 0:02:56.1]}
2... d6 {[%clk 0:03:00.1]} 3. d4 {[%clk 0:02:56.3]} 3... cxd4 {[%clk 0:03:00.5]}
4. Nxd4 {[%clk 0:02:57.2]} 4... Nf6 {[%clk 0:03:01.1]} 5. Nc3 {[%clk 0:02:57.7]}
5... a6 {[%clk 0:03:01.6]} 6. h3 {[%clk 0:02:58]} 6... e6 {[%clk 0:03:00.4]} 7.
g4 {[%clk 0:02:57.4]} 7... d5 {[%clk 0:03:00.8]} 8. exd5 {[%clk 0:02:46.9]} 8...
Nxd5 {[%clk 0:03:00.7]} 9. Bg2 {[%clk 0:02:45.4]} 9... Bb4 {[%clk 0:02:58.4]}
10. Bd2 {[%clk 0:02:33.1]} 10... Bxc3 {[%clk 0:02:24.2]} 11. bxc3 {[%clk
0:02:34]} 11... O-O {[%clk 0:02:19.4]} 12. c4 {[%clk 0:02:08.5]} 12... Ne7
{[%clk 0:02:05]} 13. Bb4 {[%clk 0:02:04.9]} 13... Qc7 {[%clk 0:02:02.7]} 14. Qe2
{[%clk 0:02:00.6]} 14... Rd8 {[%clk 0:01:55.2]} 15. Bc3 {[%clk 0:01:42.8]} 15...
Nbc6 {[%clk 0:01:38.9]} 16. Rd1 {[%clk 0:01:32]} 16... Nxd4 {[%clk 0:01:29]} 17.
Rxd4 {[%clk 0:01:30.2]} 17... Rxd4 {[%clk 0:01:28.2]} 18. Bxd4 {[%clk
0:01:31.1]} 18... Nc6 {[%clk 0:01:28.4]} 19. Bc3 {[%clk 0:01:27.6]} 19... e5
{[%clk 0:01:24.3]} 20. O-O {[%clk 0:01:22.6]} 20... Be6 {[%clk 0:01:22.4]} 21.
Bd5 {[%clk 0:01:22.6]} 21... Re8 {[%clk 0:01:18.8]} 22. Re1 {[%clk 0:01:20]}
22... h6 {[%clk 0:01:05.3]} 23. Qe4 {[%clk 0:01:14.1]} 23... Qd8 {[%clk
0:00:47.5]} 24. Rb1 {[%clk 0:01:04]} 24... Qe7 {[%clk 0:00:28.5]} 25. Kg2 {[%clk
0:00:53.2]} 25... h5 {[%clk 0:00:26.1]} 26. Kg3 {[%clk 0:00:47]} 26... hxg4
{[%clk 0:00:25.6]} 27. hxg4 {[%clk 0:00:47.9]} 27... f6 {[%clk 0:00:24.6]} 28.
g5 {[%clk 0:00:44]} 28... f5 {[%clk 0:00:14]} 29. Qxf5 {[%clk 0:00:39.6]} 29...
Bxd5 {[%clk 0:00:10]} 30. cxd5 {[%clk 0:00:40.5]} 30... Nd4 {[%clk 0:00:06.9]}
31. Bxd4 {[%clk 0:00:39.5]} 31... exd4 {[%clk 0:00:07.8]} 32. g6 {[%clk
0:00:34.4]} 32... Qd6+ {[%clk 0:00:07.2]} 33. Kg2 {[%clk 0:00:32.7]} 33... Rf8
{[%clk 0:00:07.3]} 34. Qh5 {[%clk 0:00:25.1]} 34... Rf6 {[%clk 0:00:03.8]} 35.
Qh7+ {[%clk 0:00:25]} 35... Kf8 {[%clk 0:00:04]} 36. Qh8+ {[%clk 0:00:25.4]} 1-0

[Event "*** Titled Tuesday Blitz"]
[Site "Chess.com"]
[Date "2020.05.19"]
[Round "8"]
[White "Vesper2018"]
[Black "Moon_stone123"]
[Result "0-1"]
[WhiteElo "2275"]
[BlackElo "2521"]
[TimeControl "180+1"]
[EndTime "13:36:23 PDT"]
[Termination "Moon_stone123 won on time"]

1. e4 {[%clk 0:02:59.6]} 1... c5 {[%clk 0:02:59.1]} 2. Nc3 {[%clk 0:02:58.3]}
2... g6 {[%clk 0:02:57.5]} 3. Nf3 {[%clk 0:02:54.8]} 3... Bg7 {[%clk 0:02:56.3]}
4. d4 {[%clk 0:02:55]} 4... cxd4 {[%clk 0:02:57.2]} 5. Nxd4 {[%clk 0:02:55.2]}
5... Nc6 {[%clk 0:02:57.8]} 6. Be3 {[%clk 0:02:54.3]} 6... Nf6 {[%clk
0:02:57.9]} 7. Bc4 {[%clk 0:02:52.8]} 7... O-O {[%clk 0:02:56.4]} 8. Bb3 {[%clk
0:02:52.6]} 8... d6 {[%clk 0:02:56.3]} 9. f3 {[%clk 0:02:52.6]} 9... Bd7 {[%clk
0:02:55.2]} 10. Qd2 {[%clk 0:02:52.8]} 10... Rc8 {[%clk 0:02:55.6]} 11. h4
{[%clk 0:02:52.9]} 11... h5 {[%clk 0:02:53.2]} 12. O-O-O {[%clk 0:02:52.8]}
12... Ne5 {[%clk 0:02:53.7]} 13. Bg5 {[%clk 0:02:52.7]} 13... Rc5 {[%clk
0:02:53.2]} 14. Kb1 {[%clk 0:02:52.3]} 14... Re8 {[%clk 0:02:52.8]} 15. Bh6
{[%clk 0:02:24]} 15... Nc4 {[%clk 0:02:52.3]} 16. Bxc4 {[%clk 0:02:21.1]} 16...
Rxc4 {[%clk 0:02:53.2]} 17. Bxg7 {[%clk 0:02:19.4]} 17... Kxg7 {[%clk
0:02:54.1]} 18. g4 {[%clk 0:02:13.4]} 18... hxg4 {[%clk 0:02:53.6]} 19. h5
{[%clk 0:02:13.4]} 19... Rh8 {[%clk 0:02:54]} 20. hxg6 {[%clk 0:02:01.4]} 20...
fxg6 {[%clk 0:02:54.1]} 21. f4 {[%clk 0:01:51.1]} 21... b5 {[%clk 0:02:14.4]}
22. e5 {[%clk 0:01:49.6]} 22... Nh5 {[%clk 0:02:11.7]} 23. exd6 {[%clk
0:01:40.4]} 23... exd6 {[%clk 0:02:04.5]} 24. Ne4 {[%clk 0:01:38.9]} 24... d5
{[%clk 0:01:50.7]} 25. Nd6 {[%clk 0:01:15.3]} 25... Rc7 {[%clk 0:01:43.9]} 26.
f5 {[%clk 0:01:04.7]} 26... Qf6 {[%clk 0:01:12.2]} 27. Rxh5 {[%clk 0:00:26.5]}
27... Rxh5 {[%clk 0:01:02.5]} 28. Qf4 {[%clk 0:00:26.5]} 28... g5 {[%clk
0:00:45.6]} 29. Ne8+ {[%clk 0:00:17.8]} 29... Bxe8 {[%clk 0:00:43]} 30. Qxc7+
{[%clk 0:00:17.8]} 30... Bf7 {[%clk 0:00:43.6]} 31. c3 {[%clk 0:00:11.3]} 31...
Rh3 {[%clk 0:00:39.5]} 32. Re1 {[%clk 0:00:10.9]} 32... g3 {[%clk 0:00:37.5]}
33. Ne6+ {[%clk 0:00:06.2]} 33... Kh6 {[%clk 0:00:24.4]} 34. Nf8 {[%clk
0:00:03.8]} 34... Qxf5+ {[%clk 0:00:22.6]} 35. Ka1 {[%clk 0:00:04.1]} 35... g2
{[%clk 0:00:22.3]} 36. Qd6+ {[%clk 0:00:01.2]} 36... Bg6 {[%clk 0:00:21.8]} 0-1

[Event "*** Titled Tuesday Blitz"]
[Site "Chess.com"]
[Date "2020.05.19"]
[Round "8"]
[White "Anna_ChessMate"]
[Black "Shahinyan_ChessMood"]
[Result "1-0"]
[WhiteElo "2541"]
[BlackElo "2653"]
[TimeControl "180+1"]
[EndTime "13:36:26 PDT"]
[Termination "Anna_ChessMate won by resignation"]

1. d4 {[%clk 0:03:00.9]} 1... Nf6 {[%clk 0:02:59.3]} 2. c4 {[%clk 0:03:00.2]}
2... c5 {[%clk 0:02:57.8]} 3. Nf3 {[%clk 0:02:59.1]} 3... g6 {[%clk 0:02:55]} 4.
Nc3 {[%clk 0:02:57.9]} 4... Bg7 {[%clk 0:02:53.7]} 5. g3 {[%clk 0:02:58.2]} 5...
b6 {[%clk 0:02:52.1]} 6. Bg2 {[%clk 0:02:58.3]} 6... Bb7 {[%clk 0:02:52.7]} 7.
d5 {[%clk 0:02:57.4]} 7... O-O {[%clk 0:02:52.4]} 8. O-O {[%clk 0:02:57.8]} 8...
d6 {[%clk 0:02:52.8]} 9. e4 {[%clk 0:02:57.7]} 9... Nbd7 {[%clk 0:02:53.2]} 10.
h3 {[%clk 0:02:57.1]} 10... a6 {[%clk 0:02:53.6]} 11. a4 {[%clk 0:02:53]} 11...
Qc7 {[%clk 0:02:49.1]} 12. Re1 {[%clk 0:02:52.8]} 12... e5 {[%clk 0:02:48.4]}
13. dxe6 {[%clk 0:02:44.2]} 13... fxe6 {[%clk 0:02:48.3]} 14. Bf4 {[%clk
0:02:41.9]} 14... e5 {[%clk 0:02:28.7]} 15. Bg5 {[%clk 0:02:41.5]} 15... h6
{[%clk 0:02:22.3]} 16. Be3 {[%clk 0:02:39]} 16... Nb8 {[%clk 0:02:16.8]} 17. Nh4
{[%clk 0:02:36.1]} 17... Kh7 {[%clk 0:02:13.4]} 18. Nd5 {[%clk 0:02:35.4]} 18...
Qd8 {[%clk 0:02:13.8]} 19. a5 {[%clk 0:02:27.9]} 19... b5 {[%clk 0:02:07.8]} 20.
b4 {[%clk 0:02:10.1]} 20... cxb4 {[%clk 0:01:56.8]} 21. cxb5 {[%clk 0:02:04.1]}
21... axb5 {[%clk 0:01:50.7]} 22. Bb6 {[%clk 0:02:01.2]} 22... Qd7 {[%clk
0:01:42.6]} 23. Nc7 {[%clk 0:01:53.7]} 23... Nc6 {[%clk 0:01:37.1]} 24. Nxa8
{[%clk 0:01:52.9]} 24... Bxa8 {[%clk 0:01:38]} 25. Qd3 {[%clk 0:01:50.5]} 25...
Nd4 {[%clk 0:01:27.9]} 26. Rab1 {[%clk 0:01:45.2]} 26... Qf7 {[%clk 0:01:14.8]}
27. Rxb4 {[%clk 0:01:38.9]} 27... Nxe4 {[%clk 0:01:05.6]} 28. Bxd4 {[%clk
0:01:15.9]} 28... exd4 {[%clk 0:00:41.1]} 29. Rf1 {[%clk 0:01:13.6]} 29... Nc5
{[%clk 0:00:29.1]} 30. Qxb5 {[%clk 0:00:59.7]} 30... Bxg2 {[%clk 0:00:25.7]} 31.
Nxg2 {[%clk 0:01:00.6]} 31... g5 {[%clk 0:00:23.2]} 32. Qc6 {[%clk 0:00:54.6]}
32... Qe6 {[%clk 0:00:19.8]} 33. Rb6 {[%clk 0:00:50.5]} 33... Be5 {[%clk
0:00:14.5]} 34. Qxc5 {[%clk 0:00:49.8]} 34... Qxh3 {[%clk 0:00:12.7]} 35. Qc7+
{[%clk 0:00:46.1]} 35... Kg6 {[%clk 0:00:12.5]} 36. Qc2+ {[%clk 0:00:44]} 36...
Kh5 {[%clk 0:00:09]} 37. Qe2+ {[%clk 0:00:41.7]} 37... g4 {[%clk 0:00:06.3]} 38.
Rb5 {[%clk 0:00:36.3]} 38... Kg6 {[%clk 0:00:05.7]} 39. Rxe5 {[%clk 0:00:35.8]}
39... dxe5 {[%clk 0:00:05.7]} 40. Qxe5 {[%clk 0:00:36.7]} 1-0

[Event "*** Titled Tuesday Blitz"]
[Site "Chess.com"]
[Date "2020.05.19"]
[Round "8"]
[White "Pavel_Mir"]
[Black "Chichin_chao"]
[Result "0-1"]
[WhiteElo "2194"]
[BlackElo "2388"]
[TimeControl "180+1"]
[EndTime "13:36:26 PDT"]
[Termination "Chichin_chao won by resignation"]

1. e4 {[%clk 0:03:00.9]} 1... c5 {[%clk 0:02:58.9]} 2. Nf3 {[%clk 0:02:59.3]}
2... e6 {[%clk 0:02:59.3]} 3. d4 {[%clk 0:02:57.8]} 3... cxd4 {[%clk 0:03:00.2]}
4. Nxd4 {[%clk 0:02:57.3]} 4... a6 {[%clk 0:03:00.6]} 5. Be2 {[%clk 0:02:56.7]}
5... Qc7 {[%clk 0:02:59.6]} 6. O-O {[%clk 0:02:55.6]} 6... Nf6 {[%clk
0:02:59.5]} 7. Bf3 {[%clk 0:02:46.8]} 7... Nc6 {[%clk 0:02:58.6]} 8. Nxc6 {[%clk
0:02:42.2]} 8... dxc6 {[%clk 0:02:59.5]} 9. Bg5 {[%clk 0:02:37.2]} 9... Be7
{[%clk 0:02:36.4]} 10. Qe2 {[%clk 0:02:35]} 10... e5 {[%clk 0:02:35.3]} 11. Nd2
{[%clk 0:02:31.3]} 11... h6 {[%clk 0:02:28.3]} 12. Bxf6 {[%clk 0:02:31.2]} 12...
Bxf6 {[%clk 0:02:27.4]} 13. Bg4 {[%clk 0:02:29.8]} 13... h5 {[%clk 0:02:15.5]}
14. Bxc8 {[%clk 0:02:28.3]} 14... Rxc8 {[%clk 0:02:16.4]} 15. Rad1 {[%clk
0:02:26.2]} 15... b5 {[%clk 0:02:09.7]} 16. Nb3 {[%clk 0:02:19.1]} 16... Be7
{[%clk 0:02:08.3]} 17. c4 {[%clk 0:02:13.4]} 17... g6 {[%clk 0:02:06.1]} 18. Qc2
{[%clk 0:01:59.9]} 18... O-O {[%clk 0:02:02.6]} 19. Rd3 {[%clk 0:01:58.3]} 19...
Rfd8 {[%clk 0:01:55.8]} 20. Rfd1 {[%clk 0:01:57.6]} 20... Rxd3 {[%clk
0:01:47.9]} 21. Rxd3 {[%clk 0:01:57.2]} 21... Qb7 {[%clk 0:01:43]} 22. c5 {[%clk
0:01:35.5]} 22... Qc7 {[%clk 0:01:15]} 23. Qd2 {[%clk 0:01:32.3]} 23... Rd8
{[%clk 0:01:15]} 24. Nc1 {[%clk 0:01:09.4]} 24... Rxd3 {[%clk 0:01:13.2]} 25.
Nxd3 {[%clk 0:01:09.5]} 25... Qd7 {[%clk 0:01:11.7]} 26. Qc3 {[%clk 0:01:05.1]}
26... f6 {[%clk 0:01:07.5]} 27. b4 {[%clk 0:01:03.3]} 27... Qe6 {[%clk
0:01:01.4]} 28. Qb3 {[%clk 0:01:00.4]} 28... Kf7 {[%clk 0:01:01.7]} 29. f3
{[%clk 0:00:58.8]} 29... Qxb3 {[%clk 0:01:00.9]} 30. axb3 {[%clk 0:00:58.3]}
30... Ke6 {[%clk 0:01:01.3]} 31. Kf2 {[%clk 0:00:58.4]} 31... f5 {[%clk
0:01:01.7]} 32. h3 {[%clk 0:00:57.4]} 32... Bg5 {[%clk 0:01:01.7]} 33. g4 {[%clk
0:00:56]} 33... Bd2 {[%clk 0:00:53.7]} 34. Ke2 {[%clk 0:00:52.3]} 34... Bc3
{[%clk 0:00:51.7]} 35. Kd1 {[%clk 0:00:48.9]} 35... Kf6 {[%clk 0:00:49.8]} 36.
Kc2 {[%clk 0:00:43.4]} 36... Bd4 {[%clk 0:00:50]} 37. Kd2 {[%clk 0:00:33.3]}
37... fxg4 {[%clk 0:00:46.7]} 38. fxg4 {[%clk 0:00:32.4]} 38... hxg4 {[%clk
0:00:47.3]} 39. hxg4 {[%clk 0:00:32.2]} 39... Kg5 {[%clk 0:00:47.8]} 40. Nc1
{[%clk 0:00:22.5]} 40... Kxg4 {[%clk 0:00:46]} 41. Kd3 {[%clk 0:00:22.9]} 41...
Kf3 {[%clk 0:00:43]} 42. Ne2 {[%clk 0:00:22.8]} 42... Bf2 {[%clk 0:00:43]} 43.
Nc3 {[%clk 0:00:21.6]} 43... Bh4 {[%clk 0:00:35.9]} 44. Nd5 {[%clk 0:00:21.2]}
44... cxd5 {[%clk 0:00:31.6]} 45. exd5 {[%clk 0:00:21.5]} 45... e4+ {[%clk
0:00:32.1]} 46. Kc2 {[%clk 0:00:21.8]} 46... e3 {[%clk 0:00:32.2]} 47. c6 {[%clk
0:00:21.6]} 47... Bg3 {[%clk 0:00:31.8]} 0-1

[Event "*** Titled Tuesday Blitz"]
[Site "Chess.com"]
[Date "2020.05.19"]
[Round "8"]
[White "AGW2016"]
[Black "vova-79"]
[Result "1-0"]
[WhiteElo "2236"]
[BlackElo "2392"]
[TimeControl "180+1"]
[EndTime "13:36:27 PDT"]
[Termination "AGW2016 won by resignation"]

1. e4 {[%clk 0:03:00.9]} 1... e6 {[%clk 0:02:59.4]} 2. d4 {[%clk 0:03:00.9]}
2... d5 {[%clk 0:02:59]} 3. exd5 {[%clk 0:03:01.8]} 3... exd5 {[%clk 0:02:58.4]}
4. Nf3 {[%clk 0:03:01.4]} 4... Bd6 {[%clk 0:02:57.9]} 5. c4 {[%clk 0:02:57.5]}
5... dxc4 {[%clk 0:02:57.2]} 6. Bxc4 {[%clk 0:02:57]} 6... Nf6 {[%clk
0:02:57.6]} 7. O-O {[%clk 0:02:56.1]} 7... O-O {[%clk 0:02:57.5]} 8. h3 {[%clk
0:02:56.3]} 8... h6 {[%clk 0:02:56.8]} 9. Nc3 {[%clk 0:02:56.5]} 9... Nc6 {[%clk
0:02:56.2]} 10. Re1 {[%clk 0:02:56.2]} 10... Re8 {[%clk 0:02:54.3]} 11. Be3
{[%clk 0:02:43.8]} 11... Bf5 {[%clk 0:02:52.3]} 12. Rc1 {[%clk 0:02:36.7]} 12...
Qd7 {[%clk 0:02:50.9]} 13. Nb5 {[%clk 0:02:35.4]} 13... Bb4 {[%clk 0:02:48.5]}
14. Rf1 {[%clk 0:02:29]} 14... a6 {[%clk 0:02:47.4]} 15. Nc3 {[%clk 0:02:27.8]}
15... Bd6 {[%clk 0:02:40.5]} 16. d5 {[%clk 0:02:20.3]} 16... Ne5 {[%clk
0:02:39.5]} 17. Nxe5 {[%clk 0:02:20]} 17... Bxe5 {[%clk 0:02:40]} 18. Qd2 {[%clk
0:02:14.2]} 18... Rad8 {[%clk 0:02:35.1]} 19. Bf4 {[%clk 0:01:56.5]} 19... Qd6
{[%clk 0:02:16.1]} 20. Bxe5 {[%clk 0:01:40.3]} 20... Rxe5 {[%clk 0:02:15.9]} 21.
Rfe1 {[%clk 0:01:37.8]} 21... Rde8 {[%clk 0:02:14.8]} 22. Rxe5 {[%clk
0:01:37.6]} 22... Qxe5 {[%clk 0:02:14.7]} 23. Rd1 {[%clk 0:01:35]} 23... Rd8
{[%clk 0:02:13.7]} 24. Re1 {[%clk 0:01:19.7]} 24... Qd6 {[%clk 0:02:12.7]} 25.
Qd4 {[%clk 0:01:18.6]} 25... c6 {[%clk 0:01:48.1]} 26. Qe5 {[%clk 0:01:17.6]}
26... cxd5 {[%clk 0:01:41.6]} 27. Nxd5 {[%clk 0:01:12]} 27... Qxe5 {[%clk
0:01:30.2]} 28. Rxe5 {[%clk 0:01:07]} 28... Nxd5 {[%clk 0:01:29.7]} 29. Bxd5
{[%clk 0:00:48.3]} 29... Bc8 {[%clk 0:01:27.1]} 30. Bb3 {[%clk 0:00:46.6]} 30...
Kf8 {[%clk 0:01:25.8]} 31. Rc5 {[%clk 0:00:46.1]} 31... Bd7 {[%clk 0:00:48.2]}
32. Rc7 {[%clk 0:00:42.3]} 32... b6 {[%clk 0:00:46.7]} 33. Rb7 {[%clk
0:00:28.6]} 33... b5 {[%clk 0:00:43.8]} 34. Ra7 {[%clk 0:00:28.2]} 34... Ke7
{[%clk 0:00:37.7]} 35. Rxa6 {[%clk 0:00:27]} 35... Rc8 {[%clk 0:00:33.8]} 36.
Ra7 {[%clk 0:00:25.7]} 36... f6 {[%clk 0:00:32.1]} 37. Bd5 {[%clk 0:00:20.1]}
37... Kd6 {[%clk 0:00:30.2]} 38. Bb3 {[%clk 0:00:19.6]} 38... Rc1+ {[%clk
0:00:28.8]} 39. Kh2 {[%clk 0:00:19.6]} 39... Rb1 {[%clk 0:00:29.2]} 40. Ra8
{[%clk 0:00:17.6]} 40... Rxb2 {[%clk 0:00:27]} 41. Kg3 {[%clk 0:00:18.2]} 41...
Be6 {[%clk 0:00:22.9]} 42. Ra6+ {[%clk 0:00:17.6]} 42... Kd7 {[%clk 0:00:21.5]}
43. Bxe6+ {[%clk 0:00:16.9]} 1-0

[Event "*** Titled Tuesday Blitz"]
[Site "Chess.com"]
[Date "2020.05.19"]
[Round "8"]
[White "TurboSteen"]
[Black "ecwinslow"]
[Result "1/2-1/2"]
[WhiteElo "1993"]
[BlackElo "2191"]
[TimeControl "180+1"]
[EndTime "13:36:27 PDT"]
[Termination "Game drawn by repetition"]

1. e4 {[%clk 0:01:51.3]} 1... c5 {[%clk 0:02:58.7]} 2. Nc3 {[%clk 0:01:48.5]}
2... Nc6 {[%clk 0:02:53.8]} 3. Bb5 {[%clk 0:01:46.1]} 3... g6 {[%clk 0:02:50.8]}
4. f4 {[%clk 0:01:41.2]} 4... Bg7 {[%clk 0:02:47.4]} 5. Bxc6 {[%clk 0:01:36.1]}
5... dxc6 {[%clk 0:02:44.2]} 6. Nf3 {[%clk 0:01:36.4]} 6... Qc7 {[%clk
0:02:39.6]} 7. d3 {[%clk 0:01:32.9]} 7... f6 {[%clk 0:02:17.9]} 8. O-O {[%clk
0:01:30]} 8... Nh6 {[%clk 0:02:14.7]} 9. Qe1 {[%clk 0:01:26.8]} 9... Nf7 {[%clk
0:02:12.4]} 10. b3 {[%clk 0:01:19.5]} 10... O-O {[%clk 0:02:09.7]} 11. Bb2
{[%clk 0:01:17.6]} 11... e5 {[%clk 0:02:01.9]} 12. fxe5 {[%clk 0:01:12.3]} 12...
Nxe5 {[%clk 0:01:56.7]} 13. Nxe5 {[%clk 0:01:09.6]} 13... fxe5 {[%clk
0:01:56.6]} 14. Qg3 {[%clk 0:00:58.3]} 14... Be6 {[%clk 0:01:52.4]} 15. Na4
{[%clk 0:00:55.1]} 15... b6 {[%clk 0:01:49.9]} 16. Bc3 {[%clk 0:00:47.5]} 16...
Rxf1+ {[%clk 0:01:44.9]} 17. Rxf1 {[%clk 0:00:44.1]} 17... Rf8 {[%clk
0:01:45.4]} 18. Rxf8+ {[%clk 0:00:42.8]} 18... Kxf8 {[%clk 0:01:45.4]} 19. Nb2
{[%clk 0:00:40.4]} 19... b5 {[%clk 0:01:41.2]} 20. Nd1 {[%clk 0:00:38.2]} 20...
Bf6 {[%clk 0:01:26.9]} 21. Qf2 {[%clk 0:00:34.6]} 21... Kg7 {[%clk 0:01:04]} 22.
Qxc5 {[%clk 0:00:30.8]} 22... a6 {[%clk 0:00:57.9]} 23. Ne3 {[%clk 0:00:27.7]}
23... h5 {[%clk 0:00:55.5]} 24. Nd5 {[%clk 0:00:19]} 24... Bxd5 {[%clk
0:00:33.7]} 25. exd5 {[%clk 0:00:18.8]} 25... e4 {[%clk 0:00:22.9]} 26. Bxf6+
{[%clk 0:00:16.7]} 26... Kxf6 {[%clk 0:00:22.2]} 27. dxe4 {[%clk 0:00:14.1]}
27... Qf4 {[%clk 0:00:14.1]} 28. Qxc6+ {[%clk 0:00:11.7]} 28... Kg5 {[%clk
0:00:13.2]} 29. h3 {[%clk 0:00:06.8]} 29... Qc1+ {[%clk 0:00:10.8]} 30. Kh2
{[%clk 0:00:04.9]} 30... Qf4+ {[%clk 0:00:10.4]} 31. Kh1 {[%clk 0:00:03.1]}
31... Qf1+ {[%clk 0:00:09.6]} 32. Kh2 {[%clk 0:00:02.9]} 32... Qf4+ {[%clk
0:00:08.7]} 33. Kh1 {[%clk 0:00:02.8]} 33... Qf1+ {[%clk 0:00:08.4]} 34. Kh2
{[%clk 0:00:02.7]} 34... Qf4+ {[%clk 0:00:08.8]} 1/2-1/2

[Event "*** Titled Tuesday Blitz"]
[Site "Chess.com"]
[Date "2020.05.19"]
[Round "8"]
[White "Stronger1799"]
[Black "jerry_77"]
[Result "0-1"]
[WhiteElo "2320"]
[BlackElo "2477"]
[TimeControl "180+1"]
[EndTime "13:36:29 PDT"]
[Termination "jerry_77 won on time"]

1. e4 {[%clk 0:03:00.8]} 1... c6 {[%clk 0:02:48.2]} 2. d4 {[%clk 0:02:59.6]}
2... d5 {[%clk 0:02:49.1]} 3. e5 {[%clk 0:02:58.8]} 3... c5 {[%clk 0:02:48.8]}
4. dxc5 {[%clk 0:02:58.4]} 4... Nc6 {[%clk 0:02:49.7]} 5. Nf3 {[%clk 0:02:58]}
5... Bg4 {[%clk 0:02:49.5]} 6. c3 {[%clk 0:02:52.9]} 6... e6 {[%clk 0:02:49]} 7.
Be3 {[%clk 0:02:48.6]} 7... Bxf3 {[%clk 0:02:48.9]} 8. Qxf3 {[%clk 0:02:46.8]}
8... Nxe5 {[%clk 0:02:48.5]} 9. Bb5+ {[%clk 0:02:46.5]} 9... Nc6 {[%clk
0:02:48.9]} 10. O-O {[%clk 0:02:46.1]} 10... Ne7 {[%clk 0:02:48.1]} 11. c4
{[%clk 0:02:46.3]} 11... a6 {[%clk 0:02:47.7]} 12. Ba4 {[%clk 0:02:45.7]} 12...
dxc4 {[%clk 0:02:45.3]} 13. Nd2 {[%clk 0:02:28.6]} 13... Qd5 {[%clk 0:02:39.7]}
14. Ne4 {[%clk 0:02:24.3]} 14... Ng6 {[%clk 0:01:59.8]} 15. Rfd1 {[%clk
0:02:13.5]} 15... Ne5 {[%clk 0:01:53.2]} 16. Qf4 {[%clk 0:01:57.3]} 16... Nd3
{[%clk 0:01:46.3]} 17. Qc7 {[%clk 0:01:40.6]} 17... Qd7 {[%clk 0:01:21.6]} 18.
Qg3 {[%clk 0:01:16.3]} 18... e5 {[%clk 0:00:49.5]} 19. b3 {[%clk 0:01:02.6]}
19... f5 {[%clk 0:00:48.3]} 20. Ng5 {[%clk 0:00:28.3]} 20... f4 {[%clk
0:00:37.7]} 21. Bxf4 {[%clk 0:00:24.6]} 21... exf4 {[%clk 0:00:38.6]} 22. Qf3
{[%clk 0:00:22.2]} 22... O-O-O {[%clk 0:00:34]} 23. bxc4 {[%clk 0:00:18.2]}
23... Bxc5 {[%clk 0:00:16.3]} 24. Ne4 {[%clk 0:00:08.6]} 24... Bb6 {[%clk
0:00:13]} 25. Rab1 {[%clk 0:00:08.6]} 25... Ba7 {[%clk 0:00:11]} 26. Rb3 {[%clk
0:00:07.9]} 26... Nde5 {[%clk 0:00:10.2]} 27. Rxd7 {[%clk 0:00:02.5]} 27...
Nxf3+ {[%clk 0:00:10.5]} 28. gxf3 {[%clk 0:00:01.2]} 28... Rxd7 {[%clk
0:00:11.4]} 29. Kg2 {[%clk 0:00:01.6]} 29... Rhd8 {[%clk 0:00:11.2]} 30. Ng5
{[%clk 0:00:01.4]} 30... Rd6 {[%clk 0:00:10.9]} 31. Bxc6 {[%clk 0:00:01.6]}
31... Rxc6 {[%clk 0:00:10.9]} 32. Nxh7 {[%clk 0:00:02.5]} 32... Rg6+ {[%clk
0:00:11]} 33. Kf1 {[%clk 0:00:02.6]} 33... Rh8 {[%clk 0:00:11.7]} 0-1